Workbook

Sheet Portada

Sheet Balance de Comprobación
C2: Fondo de Jubilaciones y Pensiones del Poder Judicial
C4: Balance de Comprobación
C6: Al 31 de Mayo 2018
C9: ACTIVO
C10: Cuentas Corrientes Y De Ahorro | F10: 4543992338
C11: Inversiones En Valores De Emisores Nacionales | F11: 4.919270609e+11
C12: Cuentas Por Cobrar | F12: 212733668.6
C13: Productos Por Cobrar Sobre Inversiones | F13: 7607723206
C14: Préstamos a Afiliados | F14: 23256771.79
C15: Aportes Por Cobrar A Los Trabajadores | F15: 3473937556
C16: Aportes Por Cobrar Al Patrono | F16: 2754343966
C17: Aportes Por Cobrar Al Estado | F17: 242089315.1
C18: Otros Aportes Por Cobrar | F18: 245134208
C19: Mobiliario Y Equipo
C20: Equipo De Cómputo
C21: (Depreciación Acumulada)
C22: Costo de Programas Informáticos-Software | F22: 7618670
C23: (Amortización Programas Informáticos) | F23: -7618670
C24: GASTOS
C25: Pérdidas por Negociación de Instrumentos Financieros
C26: Pérdidas Por Fluctuación Cambiaria | F26: 306633585.8
C27: Pérdidas por Variaciones en la Unidad de Referencia | F27: 65206282.32
C28: Gastos Generales | F28: 500413369.4
C29: PASIVO
C30: Retenciones A Pensionados | H30: 706486100.5
C31: Obligaciones Por Liquidar Empleados | H31: 64093.81
C32: Obligaciones Transitorias por Liquidar | H32: 84985670.81
C33: Retención Por Servicios Recibidos
C34: Cotización Seguro De Enfermedad Y Maternidad | H34: 500331943.6
C35: Provisión Para Pensiones En Curso De Pago | H35: 5.071108412e+11
C36: PATRIMONIO
C37: De los Pensionados | H37: 20284264.47
C38: INGRESOS
C39: Productos Sobre Inversiones De Emisores Nacionales | H39: 2912816850
C40: Intereses Sobre Saldos En Cuentas Bancarias | H40: 0
C41: Por Negociación de Instrumentos Financieros | H41: 0
C42: Ganancias por Fluctuación Cambiaria | H42: 551259477.2
C43: Ganancias por Variaciones en la Unidad de Referencia | H43: 2145479.38
C44: Ingresos sobre Préstamos de Afiliados | H44: 305249.57
C45: Otros Ingresos | H45: 13004900.31
C49: Sumas Iguales | F49: =SUM(F10:F28) -> 5.119025252e+11 | H49: =SUM(H30:H45) -> 5.119025252e+11
C72: Observación: Enlace al Manual de Políticas Contables.

Sheet Cambios Act. Netos Disponibles
B1: Fondo de Jubilaciones y Pensiones
B2: Estado de Cambios en los Activos Netos Disponibles
B3: Por el mes terminado al 31/05/2018
B4: (En colones sin céntimos)
D7: SALDO MENSUAL | G7: SALDO ACUMULADO
C8: NOTAS
B9: SALDO INICIAL | E9: 2447553875 | F9: (1) | H9: 2908712973 | I9: (2)
B11: INGRESOS | E11: 3479531956 | H11: 1.737770611e+10
B13: INGRESOS FINANCIEROS | D13: 3466527056 | G13: 1.734172656e+10
B14: Productos sobre Inversiones de Emisores Nacionales | C14: Nota 1 | D14: 2912816850 | G14: 1.44123611e+10
B15: Intereses sobre Saldos en Cuentas Corrientes | C15: Nota 2 | D15: 0 | G15: 7167129.25
B16: Por negociación de instrumentos financieros | G16: 0
B17: Ganancias por Fluctuación Cambiaria | C17: Nota 3 | D17: 551259477.2 | G17: 1771356041
B18: Ganancias por Variaciones en la Unidad de Referencia | C18: Nota 4 | D18: 2145479.38 | G18: 1149412095
B19: Ingresos sobre Préstamos a Afiliados y Pensionados | C19: Nota 5 | D19: 305249.57 | G19: 1430193.42
B21: OTROS INGRESOS | D21: 13004900.31 | G21: 35979549.51
B23: PLAN DE CONTRIBUCIONES | C23: Nota 6 | E23: 6711272352 | H23: 3.245285168e+10
B25: RESERVAS EN FORMACION
B26: De los trabajadores | D26: 2632828132 | G26: 1.254298885e+10
B27: Del Patrono | D27: 3262630293 | G27: 1.609582864e+10
B28: Del Estado | D28: 132258048.4 | G28: 662389975
B29: De los Pensionados | D29: 683555878.5 | G29: 3151644216
B30: Rendimientos Acumulados | D30: 0
B32: UTILIDAD ( PERDIDA DEL EJERCICIO ) | D32: 0
B34: TOTAL ADICIONES | E34: 1.019080431e+10 | H34: 4.983055779e+10
B36: SALIDA DE RECURSOS | E36: 9158826227 | H36: 4.567180545e+10
B37: Por Nuevos Pensionados | C37: Nota 7 | D37: 9158826227 | G37: 4.567180545e+10
B39: GASTOS | E39: 872253237.6 | H39: 4460186593
B41: GASTOS FINANCIEROS | D41: 371839868.2 | G41: 1996069081
B42: Pérdida por Negociación de Inst. Financ. | D42: 0 | G42: 0
B43: Pérdida por Fluctuación Cambiaria | C43: Nota 8 | D43: 306633585.8 | G43: 1873064886
B44: Pérdida por Variaciones en la Unidad de Referencia | C44: Nota 9 | D44: 65206282.32 | G44: 123004195.4
B46: GASTOS GENERALES | C46: Nota 10 | D46: 500413369.4 | G46: 2464117512
B48: TOTAL DE DEDUCCIONES | E48: 1.003107946e+10 | H48: 5.013199205e+10
B50: ACTIVOS NETOS DISPONIBLES PARA BENEFICIOS
B51: FUTUROS AL FINAL DEL PERIODO (3) | E51: 2607278719 | H51: 2607278719
B54: Observaciones:
B55: (1) Saldo inicial mensual: Corresponde al total de activos disponibles para beneficios futuros al final del mes de abril 2018.
B56: (2) Saldo acumulado: Pertenece al total de activos disponibles de beneficios futuros al final del año anterior (Diciembre 2017).
B57: (3) Activos Netos Disponibles para Beneficios Futuros al Final del Periodo: Corresponde al total de ingresos menos el total de gastos.
B80: Observación: Enlace al Manual de Políticas Contables.

Sheet Act. Netos Dispon. Beneficios
B2: Fondo de Jubilaciones y Pensiones del Poder Judicial
B3: Estado de Activos Netos Disponibles para Beneficios
B4: AL 31/05/2018
B5: (En colones sin céntimos)
C6: NOTAS
B7: DISPONIBILIDADES | E7: 4543992338
B8: Cuentas Corrientes y de Ahorro | C8: Nota 11 | D8: 4543992338
B10: INVERSIONES EN VALORES | E10: 4.919270609e+11
B11: EN CURSO DE PAGO
B12: Inversiones en Valores de Emisores Nacionales | C12: Nota 12 | D12: 4.919270609e+11
B14: CUENTAS Y PRODUCTOS POR COBRAR SOBRE INVERSIONES | E14: 7820456874
B15: PROVISION PARA PENSIONES EN CURSO DE PAGO
B16: Cuentas Por Cobrar | C16: Nota 13 | D16: 212733668.6
B17: Productos Por Cobrar Sobre Inversiones De Emisores Nacionales | C17: Nota 14 | D17: 7607723206
B19: PRESTAMOS A AFILIADOS Y PENSIONADOS | E19: 23256771.79
B20: Préstamos por Cobrar | C20: Nota 15 | D20: 23256771.79
B21: Productos por Cobrar sobre Préstamos | C21: Nota 15 | D21: 0
B23: APORTES POR COBRAR | E23: 6715505044
B24: Aportes Por Cobrar A Los Trabajadores | C24: Nota 16 | D24: 3473937556
B25: Aportes Por Cobrar Al Patrono | C25: Nota 16 | D25: 2754343966
B26: Aportes Por Cobrar Al Estado | C26: Nota 16 | D26: 242089315.1
B27: Otros Aportes Por Cobrar | C27: Nota 16 | D27: 245134208
B29: PROPIEDAD, PLANTA Y EQUIPO | E29: 0
B30: Mobiliario y Equipo | D30: 0
B31: Equipo de Cómputo | D31: 0
B32: (Depreciación Acumulada) | D32: 0
B34: OTROS ACTIVOS | E34: 0
B35: Intangibles | C35: Nota 17 | D35: 0
B37: ACTIVO TOTAL | E37: 5.11030272e+11
B39: CUENTAS POR PAGAR | E39: 791535865.1
B40: Retenciones A Pensionados | C40: Nota 18 | D40: 706486100.5
B41: Obligaciones Por Liquidar Empleados y Exempleados | C41: Nota 19 | D41: 64093.81
B42: Obligaciones Transitorias por Liquidar | C42: Nota 20 | D42: 84985670.81
D43: 0
B44: PROVISIONES | E44: 500331943.6
B45: Cotización Seguro De Enfermedad y Maternidad | C45: Nota 21 | D45: 500331943.6
B47: PROVISIONES PARA PENSIONES EN CURSO DE PAGO | C47: Nota 22 | E47: 5.071108412e+11
B49: PASIVO TOTAL | E49: 5.08402709e+11
B51: ACTIVOS NETOS DISPONIBLES PARA BENEFICIOS FUTUROS (1) | E51: 2627562983
B53: CUENTAS DE ORDEN | C53: Nota 23 | E53: 289645067.5
B55: Observaciones:
B56: (1) Activos Netos Disponibles para Beneficios Futuros al Final del Periodo: Corresponde al total de activo menos el total de pasivo.
B83: Observación: Enlace al Manual de Políticas Contables.

Sheet Nota 1
B2: Nota 1:
B3: Productos sobre Inversiones de Emisores Nacionales
B5: al 31 de Mayo de 2018
B7: MENSUAL
B9: PRODUCTOS SOBRE INVERSIONES DE VALORES NACIONALES | D9: COLONES | F9: DOLARES | H9: TOTAL
B11: Intereses devengados | D11: 2798208061 | F11: 191056727.7 | H11: 2989264789
B12: Amortización de descuento | D12: 3500523.98 | F12: 1762248.45 | H12: 5262772.43
B13: Comisión devengada | D13: -486377.92 | F13: -314616.16 | H13: -800994.08
B14: Amortización de prima | D14: -152215008 | F14: -983049.15 | H14: -153198057.2
B15: Otros intereses devengados | D15: 0 | F15: 0 | H15: 0
B16: Ingresos por Dividendos | D16: 0 | F16: 72288339.76 | H16: 72288339.76
B18: TOTAL DE PRODUC. SOBRE INVERS. DE VALORES NACIONALES. | D18: =SUM(D11:D16) -> 2649007199 | F18: =SUM(F11:F17) -> 263809650.6 | H18: =SUM(H11:H17) -> 2912816850
B20: ACUMULADO
B22: PRODUCTOS SOBRE INVERSIONES DE VALORES NACIONALES | D22: COLONES | F22: DOLARES | H22: TOTAL
B24: Intereses devengados | D24: 1.382457614e+10 | F24: 920280443 | H24: 1.474485658e+10
B25: Amortización de descuento | D25: 17835778.63 | F25: 2325215.21 | H25: 20160993.84
B26: Comisión devengada | D26: -717516.68 | F26: -444800.83 | H26: -1162317.51
B27: Amortización de prima | D27: -767375810.5 | F27: -5063533.14 | H27: -772439343.6
B28: Otros intereses devengados | D28: 0 | F28: 0 | H28: 0
B29: Ingresos por Dividendos | D29: 0 | F29: 420945189 | H29: 420945189
B31: TOTAL DE PRODUC. SOBRE INVERS. DE VALORES NACIONALES. | D31: =SUM(D24:D30) -> 1.307431859e+10 | F31: =SUM(F24:F30) -> 1338042513 | H31: =SUM(H24:H30) -> 1.44123611e+10

Sheet Nota 2
C2: Nota 2:
C3: Intereses sobre Saldos en Cuentas Corrientes
C5: =+'Nota 1'!B5 -> al 31 de Mayo de 2018
C10: Acumulado
C12: Cuenta Corriente | E12: Banco | G12: Intereses Ganados en el Periodo
C14: 1234-0 | E14: Banco Nacional de Costa Rica | G14: 1647.54
C15: 229-32-9 | E15: Banco de Costa Rica | G15: 6707871.64
C16: 18-1019277 | E16: Banco Popular y de Desarrollo Comunal | G16: 6949.79
C17: 1914-1 $ | E17: Banco Popular y de Desarrollo Comunal
C18: 112247-9 $ | E18: Banco de Costa Rica | G18: 450660.28
C19: 174961-7 | E19: Banco de Costa Rica
C21: Total | G21: =SUM(G14:G20) -> 7167129.25
L36: 0

Sheet Nota 3
B2: Nota 3:
B3: Ganancias por Fluctuación Cambiaria
B5: =+'Nota 1'!$B$5:$H$5 -> al 31 de Mayo de 2018
B7: Cuenta | D7: Mes | F7: Acumulado
B8: Por Cuentas Corrientes | D8: 5506575.48 | F8: 14707641.42
B9: En Inversiones En Valores De Emisores Nacionales $ | D9: 540936347.1 | F9: 1739668065
B10: Por Cuentas Por Cobrar | D10: 391596.66 | F10: 462718.5
B11: Por Productos Por Cobrar Sobre Inversion | D11: 4424958.01 | F11: 16517616.45
B12: Ganancia Total Generada | D12: =SUM(D8:D11) -> 551259477.2 | F12: =SUM(F8:F11) -> 1771356041

Sheet Nota 4
B2: Nota 4:
B3: Ganancias por Variaciones en la Unidad de Referencia
B5: =+'Nota 1'!$B$5:$H$5 -> al 31 de Mayo de 2018
B7: Cuenta | D7: Mes | F7: Acumulado
B8: En valores emitidos por el Gobierno | D8: 2145479.38 | F8: 1149412095
B9: Ganancia Total Generada | D9: =SUM(D8:D8) -> 2145479.38 | F9: =SUM(F8:F8) -> 1149412095

Sheet Nota 5
B2: Nota 5:
B3: Ingresos sobre Préstamos a Afiliados y Pensionados
B5: =+'Nota 1'!$B$5:$H$5 -> al 31 de Mayo de 2018
B7: Total de Préstamo | D7: Entidad | F7: Plazo | H7: Tasa actual | J7: Ingreso Por Interes mensual | L7: Ingreso Por Interes Acumulado
B9: 1000000000 | D9: ANEJUD | F9: 10 años | H9: 0.0874 | J9: 305249.57 | L9: 1430193.42

Sheet Nota 6
B2: Nota 6:
B3: PLAN DE CONTRIBUCIONES
B5: =++'Nota 1'!$B$5:$H$5 -> al 31 de Mayo de 2018
B7: Aportes | D7: Porcentajes | F7: Mensual | H7: Acumulado
B9: Trabajadores | D9: 11% y 13% | F9: 2632828132 | H9: 1.254298885e+10
B10: Patrono | D10: 0.1436 | F10: 3262630293 | H10: 1.609582864e+10
B11: Estado | D11: 0.0058 | F11: 132258048.4 | H11: 662389975
B12: Jubilados y Pensionados | D12: 11% y 13% | F12: 663271614 | H12: 3131359951
B13: Contribución Solidaria | D13: - | F13: 20284264.47 | H13: 20284264.47
B15: Total Aportes | F15: =SUM(F9:F13) -> 6711272352 | H15: =SUM(H9:H13) -> 3.245285168e+10
B18: Notas:
B20: 1-) Mediante Acuerdo del Consejo Superior N° 2-2018, art I, se autoriza a disminuir el porcentaje del aporte estatal, a partir del mes de enero 2018 pasando de 1.24% a 0.58%, lo anterior por cuanto el Ministerio de Hacienda recortó del Presupuesto del Poder Judicial la suma de ¢1,200,000,000 (Mil doscientos millones de colones).
B22: 2-) Mediante Acuerdo del Consejo Superior, sesión N°26-2018 del 5/04/2018, en su punto tercer indica: "[...] modificar el acuerdo tomado en sesión N°2-18 del 11/01/2018, art I, por lo que deberá la Dirección de Gestión Humana registrar como porcentaje del aporte estatal al Fondo de Jubilaciones y Pensiones el definido por la Caja Costarricense del Seguro Social (CCSS)". Según lo definido en este acuerdo el porcentaje regresa al 1.24% establecido en Decreto Ejecutivo N° 39202-MTSS-H en su artículo 2, publicado en la Gaceta N° 170 del martes 01 de setiembre del 2015.
B24: 3-) Mediante la publicación de la Ley 9544, que reforma el Regimen de Jubilaciones y Pensiones del Poder Judicial y Acuerdo del Consejo Superior Sesión N°46-18 celebrada el 22/05/2018, art VI, se solicita realizar a partir de esta fecha el incremento al aporte obrero del 11% al 13%, así como el rebajo de la contribución especial, solidaria y redistributiva a las personas jubiladas y pensionadas, conforme el articulo 236 de esta Ley.
B26: 4-) La Dirección de Gestión Humana mediante oficios 006-CP-DGH-2018, 009-CP-DGH-2018, 011-CP-DGH-2018, 012-C-DGH-2018 remiten la información equivalente al 0.66% para los meses de Enero a Mayo del año 2018, con el fin de revelar el detalle de la cuenta por cobrar por la diferencia porcentual hasta que se modifiquen los parametros a nivel de sistemas:
D29: Mes | F29: Monto
D30: Enero | F30: 120402999.9
D31: Febrero | F31: 140520637.7
D32: Marzo | F32: 136148891.6
D33: Abril* | F33: 135077110.6
D34: Mayo | F34: 137614704.2
D35: Total | F35: =SUM(F30:F34) -> 669764343.9
B37: Nota: Para el mes de abril 2018 mediante oficio 011-CP-DGH-2018, la DGH comunica el monto correspondiente al 0.66% de aporte estatal indicando una suma de ¢255,257,113.99, sin embargo, mediante correo electrónico del 29/05/2018, realizan una rectificación del monto por la suma de ¢135,077,110.64, dado lo anterior a partir del mes de mayo 2018, se muestra la suma correcta para el mes de Abril 2018.

Sheet Nota 7
B2: Nota 7:
B3: SALIDA DE RECURSOS
B5: =+'Nota 6'!B5:H5 -> al 31 de Mayo de 2018
D7: Mensual | F7: Acumulado
B9: Aportes | D9: 6711272352 | F9: 3.245285168e+10
B10: Rendimientos | D10: 2447553875 | F10: 1.321895377e+10
B12: TOTAL | D12: =SUM(D9:D10) -> 9158826227 | F12: =SUM(F9:F10) -> 4.567180545e+10
B14: Observación: Corresponde al traslado de todos los recursos de la cuenta patrimonial "Reserva en formación" a la cuenta "Provisión para pensiones en curso de pago"

Sheet Nota 8
B2: Nota 8:
B3: Pérdida por Fluctuación Cambiaria
B5: =+'Nota 7'!B5:F5 -> al 31 de Mayo de 2018
B7: Cuenta | D7: Mes | F7: Acumulado
B8: Por Cuentas Corrientes | D8: 4706100.98 | F8: 12929495.91
B9: En Inversiones En Valores De Emisores Nacionales $ | D9: 298091412.7 | F9: 1839946146
B10: Por Cuentas Por Cobrar | D10: 18877.37 | F10: 65381.43
B11: Por Productos Por Cobrar Sobre Inversion | D11: 3817194.77 | F11: 20123862.58
B12: Pérdida Total Generada | D12: =SUM(D8:D11) -> 306633585.8 | F12: =SUM(F8:F11) -> 1873064886

Sheet Nota 9
B2: Nota 9:
B4: Pérdida por Variaciones en la Unidad de Referencia
B6: =+'Nota 8'!B5:F5 -> al 31 de Mayo de 2018
B8: Cuenta | D8: Mes | F8: Acumulado
B9: En valores emitidos por el Gobierno | D9: 65206282.32 | F9: 123004195.4
B10: Pérdida Total Generada | D10: =SUM(D9:D9) -> 65206282.32 | F10: =SUM(F9:F9) -> 123004195.4

Sheet Nota 10
B2: Nota 10:
B3: GASTOS GENERALES
B5: =+'Nota 9'!B6:F6 -> al 31 de Mayo de 2018
B7: GASTOS GENERALES | D7: MENSUAL | F7: ACUMULADO
B9: Servicios Bancarios | D9: 84572.61 | F9: 387699.49
B10: Cotización Seguro De Enfermedad y Maternidad | D10: 500325972.1 | F10: 2463578056
B11: Gastos Diversos | D11: 2824.72 | F11: 151757.02
B13: TOTAL DE GASTOS GENERALES | D13: =SUM(D9:D12) -> 500413369.5 | F13: =SUM(F9:F12) -> 2464117512

Sheet Nota 11
B2: Nota 11:
B3: Cuentas Corrientes y de Ahorro
B5: =+'Nota 10'!B5:F5 -> al 31 de Mayo de 2018
B7: CUENTAS CORRIENTES Y DE AHORRO PROV. PARA PENSIONES EN CURSO DE PAGO | D7: TOTAL ¢ | F7: TIPO DE CAMBIO | H7: TOTAL $
B9: Banco Nacional de C.R. Cta 1234-0 | D9: 99833.27
B10: Banco de Costa Rica Cta 229-32-9 | D10: 4514985119
B11: Banco de Costa Rica Cta 174961-7 | D11: 99000
B12: Banco Popular Cta 1019277-0 | D12: 33003742.29
B13: Banco Nacional de C.R. 2413-8 | D13: 0
B14: Banco de Costa Rica 349803-4 | D14: 83.81
B15: Banco de Costa Rica 349824-7 | D15: -429262334.5
B16: Banco de Costa Rica Cta. 112247-9 $ | D16: 425458021.7 | F16: 565.89 | H16: =+D16/F16 -> 751838.7349
B17: Banco Nacional de C.R. Cta 601227-7 $ | D17: 166625.01 | F17: 565.89 | H17: =+D17/F17 -> 294.4477019
B18: Banco Popular Cta 1914-1 $ | D18: -557752.18 | F18: 565.89 | H18: -985.6194313
B20: TOTAL EN CUENTAS CORRIENTES Y DE AHORRO | D20: =SUM(D9:D18) -> 4543992338 | H20: =SUM(H16:H18) -> 751147.5632

Sheet Nota 12
B2: Nota 12:
B3: Inversiones en Valores de Emisores Nacionales
B5: =+'Nota 11'!B5:H5 -> al 31 de Mayo de 2018
B7: COLONES
B9: Inv. Valor Facial | D9: 4.266602162e+11
B10: Primas | D10: 9848244700
B11: Descuentos | D11: -70824558.6
B13: SALDO INVERSIONES EN COLONES | D13: =SUM(D9:D11) -> 4.364376364e+11
B16: SALDO DÓLARES | F16: TIPO DE CAMBIO | H16: SALDO EN COLONES
B18: Inv. Valor Facial | D18: =+H18/F18 -> 69539936.28 | F18: 568.39 | H18: 3.952580438e+10
B19: Primas | D19: =+H19/F19 -> 84339.45983 | F19: 568.39 | H19: 47937705.57
B20: Descuentos | D20: =+H20/F20 -> -260250.7799 | F20: 568.39 | H20: -147923940.8
B21: Títulos de Participación | D21: =+H21/F21 -> 28261592.27 | F21: 568.39 | H21: 1.606360643e+10
B23: SALDO INVERSIONES EN DÓLARES (COLONIZADO) | D23: =SUM(D18:D21) -> 97625617.23 | H23: =SUM(H18:H21) -> 5.548942458e+10
B25: TOTAL GENERAL: | D25: =+D13+H23 -> 4.919270609e+11

Sheet Nota 13
B2: Nota 13:
B3: CUENTAS POR COBRAR
B5: =+'Nota 12'!B5:H5 -> al 31 de Mayo de 2018
B7: Cuentas por Cobrar
B9: Títulos vencidos pendientes de cobro | D9: 4006321.87
B10: Impuesto Sobre La Renta Por Cobrar (1) | D10: 208689045.1
B11: Sumas Pend. De cobrar (2) | D11: 38301.71
B13: Saldo: | D13: =D9+D10+D11 -> 212733668.6
B15: 1-) Corresponden aquellas sumas que debe recuperar el Régimen por concepto de exención del 8% del impuesto sobre la renta de los títulos valores, que por su situación particular, no es posible cobrarlos inmediatamente con el vencimiento de los cupones
B18: 2-) En esta cuenta se registrará las cuentas por cobrar, generadas de la captación de inversiones, por comisiones pagadas de más, intereses moratorios u otros.

Sheet Nota 14
B2: Nota 14:
B4: Productos por cobrar sobre Inversiones de Emisores Nacionales
B6: =+'Nota 13'!B5:D5 -> al 31 de Mayo de 2018
B8: Productos por cobrar sobre Inversiones
B10: Sobre Valores Emitidos Por El Banco Central | D10: 569606954.3
B11: Sobre Valores Emitidos Por El Gobierno | D11: 5568155313
B12: Sobre Valor. Emit. otras Ent Pub. no Fininancieras | D12: 236821567
B13: Sobre Valores Emitidos Por Bancos Comerciales | D13: 754379668.8
B14: Sobre Val. Emit. Bcos. Pub. Ley. Especiales | D14: 247620931.2
B15: Sobre Val. Emit. Bcos. Bancos Privados | D15: 68532695.23
B16: Dividendos por Cobrar | D16: 162606076.2
B18: Saldo | D18: =SUM(D10:D17) -> 7607723206

Sheet Nota 15
B2: Nota 15:
B3: Préstamos por Cobrar
B5: =+'Nota 14'!B6:D6 -> al 31 de Mayo de 2018
B7: SUMAS GIRADAS A: | D7: MONTO
B9: ANEJUD: Débito No. 2863 de la Cta 174961-7 BCR el 9 de diciembre de 2008 (Autorizado por la Dirección Ejecutiva oficio No.9488-DE-08) | D9: 166244019.2
B10: ANEJUD: Débito No. 20806860 de la Cta 1234-0 BNCR el 9 de diciembre de 2008 (Autorizado por la Dirección Ejecutiva oficio No.9488-DE-08) | D10: 410921974.9
B11: ANEJUD: Débito No. 379 de la Cta 229-32-9 BCR el 10 de febrero de 2009 (Autorizado por la Dirección Ejecutiva con oficio No. 1123-DE-2009 ). El desembolso autorizado por esa Dirección Ejecutiva es por ¢422.834.006 de los cuales y a solicitud de ANEJUD con oficio del 10 de febrero de 2009 a Don Walter Jiménez Sorio, Jefe del Departamento Financiero Contable en su oportunidad, se deduce la primera cuota de intereses cancelada por adelantado de ¢6.876.239. El total girado con el débito No. 379 es ¢415.957.767. | D11: 422834006
B13: TOTAL DE LOS DESEMBOLSOS | D13: =SUM(D9:D11) -> 1000000000
B15: Menos. Amortizaciones | D15: 976743228.2
B17: Saldo del préstamo | D17: =+D13-D15 -> 23256771.79
B19: Mas: Intereses por cobrar
B21: TOTAL POR COBRAR | D21: =+D17+D19 -> 23256771.79

Sheet Nota 16
B2: Nota 16:
B3: APORTES POR COBRAR
B5: =+'Nota 15'!B5:D5 -> al 31 de Mayo de 2018
B7: Nota | D7: Sub-nota | F7: APORTES POR COBRAR | H7: Detalle | J7: Total
B9: 16.1 | F9: Aporte por cobrar a los trabajadores | J9: 3473937556
D10: 16.1.1 | F10: Aporte Ordinario | H10: 117374323.5
D11: 16.1.2 | F11: Aporte Ordinario S .Escolar | H11: 958029077.1
D12: 16.1.3 | F12: Aporte Reconocimiento de tiempo servido | H12: 2398534155
B13: 16.2 | F13: Aportes por cobrar al Patrono | J13: 2754343966
D14: 16.2.1 | F14: Aportes Por Cobrar Poder Jud.-Patrono | H14: 1516249014
D15: 16.2.2 | F15: Apor. x Cobrar Poder Jud.-Patrono (S.E) | H15: 1238094951
B16: 16.3 | F16: Aportes por cobrar al Estado | J16: 242089315.1
D17: 16.3.1 | F17: Aportes Por Cobrar Poder Jud.-Estado | H17: 61420862.57
D18: 16.3.2 | F18: Apor. x Cobrar Poder Jud.-Estado (S.E) | H18: 180668452.5
B19: 16.4 | F19: Otros aportes por cobrar | J19: 245134208
D20: 16.4.1 | F20: Sumas canceladas de más a Jubilados y Pensionados | H20: 139134595.2
D21: 16.4.2 | F21: Aportes Reconocimiento de Tiempo Servido Fuera del Poder Judicial (RTSFPJ) | H21: 6175007.37
D22: 16.4.3 | F22: Otros aportes por cobrar entidades deductoras | H22: 1476423.89
D23: 16.4.4 | F23: Sumas canceladas de más a Jubilados y Pensionados (Aguinaldo) | H23: 98348181.59
F25: TOTAL | J25: =SUM(J9:J23) -> 6715505044

Sheet Nota 17
B2: Nota 17:
B3: INTANGIBLES
B5: =+'Nota 16'!B5:J5 -> al 31 de Mayo de 2018
B7: Detalle | D7: Monto | F7: Amortización | H7: Total
B8: Sistema inversiones "Internet Systems Development Insyde S.A" | D8: 7618670 | F8: -7618670 | H8: 0
B11: Nota:
B12: Corresponde al registro de la compra del Sistema de Inversiones a la empresa Internet Systems Development Insyde S.A. con un valor de $14,750.00, valorado al tipo de cambio de la fecha de adquisición del activo (15 de agosto de 2007) de ¢516.52, para un total de ¢7,618,670. A dicho monto se descuenta la amortización acumulada al cierre del presente mes que asciende a ¢7,618,670 para un activo neto de ¢0.00. La vida útil del sistema en mención es de 5 años y considerando que fue registrado en setiembre del 2007 se encuentra depreciado en su totalidad, no obstante, a la fecha de este informe se encuentra en funcionamiento. En el periodo comprendido entre el 15 de julio a 12 de diciembre del 2011 la Dirección de Tecnología de Información realizó mejoras al sistema de Inversiones por la suma de ¢1.673.895. Lo anterior, de acuerdo con la información suministrada por la Dirección de Tecnología de la Información, mediante correo electrónico del 27 de abril del 2017 y oficio 1635-DTI-2017, dicho monto se encuentra registrado actualmente en los registros contables del Poder Judicial por igual suma. Con oficio 425-SC-2015 de 26 de agosto del 2015, se realizó la consulta a la Superintendencia de Pensiones (SUPEN) sobre la forma de registro contable de la información suministrada por la Dirección de Tecnología de Información, en virtud de que, en el Manual de Cuentas para el Régimen de Capitalización Colectiva emitido por dicha Superintendencia, no se observa alguna cuenta contable para el registro de la reevaluación de activos intangibles. La SUPEN ante la consulta realizada, indicó lo siguiente: “[…] conforme lo establecido en las Normas internacionales de Información Financiera (NIIF), se le comunica que no existe forma alguna de atribuir costo a un activo intangible luego del final de su vida útil: aunque esté en operación y generando beneficios, su valor en libros deberá seguir siendo cero…”

Sheet Nota 18
C2: Nota 18:
C4: Retenciones A Pensionados
C6: =+'Nota 17'!B5 -> al 31 de Mayo de 2018
C8: RETENCIONES A JUBILADOS Y PENSIONADOS | E8: TOTAL
C10: Impuesto Sobre La Renta | E10: 420585542.9
C11: Caja Costarricense Seguro Social | E11: 285900557.5
C13: TOTAL DE RETENCIONES A JUBILADOS Y PENSIONADOS | E13: =SUM(E10:E12) -> 706486100.5

Sheet Nota 19
A2: Nota 19:
B4: Obligaciones Por Liquidar Empleados y Exempleados
B6: =+'Nota 18'!C6 -> al 31 de Mayo de 2018
B9: OBLIGACIONES POR LIQUIDAR EMPL. Y EXEMPL. | D9: TOTAL
B11: VCLO | D11: 64094
B13: OBLIGACIONES POR LIQUIDAR EMPL. Y EXEMPL. | D13: =SUM(D11:D12) -> 64094

Sheet Nota 20
B2: Nota 20:
B4: Obligaciones Transitorias por Liquidar
B6: =+'Nota 19'!B6:D6 -> al 31 de Mayo de 2018
B8: Obligaciones Transitorias por Liquidar | D8: Saldo
B10: Benef. no retirados y por fallecimiento | D10: 34005563.88
B11: Sumas en transito por aclarar | D11: 2822005
B12: Instituciones Financieras -Banco de Costa Rica | D12: 49693.56
B13: Institucione Financieras Banco Popular ¢ | D13: 498197.34
B14: Instituciones Gubernamentales-Caja Costarricense Seguro Social | D14: 3796451.36
B15: Anejud | D15: 2946891.41
B16: Otros-Errores Bancarios | D16: 32062019.41
B17: *Aporte Junta Administradora FJP - Jubilados y Pensionados | D17: 8572598.12
B18: Instituciones Financieras-Banco Popular $ | D18: 232250.73
B20: Total Obligaciones Transitorias por Liquidar | D20: =SUM(D10:D18) -> 84985670.81
B22: Nota: Mediante la publicación de la Ley 9544, se aplica la reforma al capítulo IV, art 239, referente a la comisión por gastos administrativos, la cua indica: " Surgirá de deducir un cinco por mil de los sueldos de que devengen los servidores judicial, así como de las jubilaciones y las pensiones a cargo del Fondo. Con estos recursos se pagarán las dietas de los miembros de la Junta Administradora, los salarios de su personal y, en general, sus gastos administrativos...", dicho aporte dio inicio a partir del 22/05/2018.

Sheet Nota 21
B2: Nota 21:
B4: Cotización Seguro De Enfermedad y Maternidad
B6: =+'Nota 20'!B6:D6 -> al 31 de Mayo de 2018
B8: Entidad | D8: Porcentaje | F8: Monto
B9: Caja Costarricense del Seguro Social | D9: 0.0875 | F9: 500331943.6

Sheet Nota 22
B2: Nota 22:
B3: PROVISIONES PARA PENSIONES EN CURSO DE PAGO
B5: =+'Nota 21'!B6:F6 -> al 31 de Mayo de 2018
B7: Nota | D7: Sub-nota | F7: APORTES POR COBRAR | H7: Detalle | J7: Total
B9: 22.1 | F9: Recursos recibido de reservas en formación | J9: 9.789781264e+11
B10: 22.2 | F10: (Menos) Pago plan de beneficios | J10: 4.718672852e+11
D11: 22.2.1 | F11: Traslados a otros regímenes | H11: 466282035.8
F13: TOTAL | J13: =+J9-J10 -> 5.071108412e+11
B16: Nota:
B18: Mediante oficio 426-SC-2017 con fecha del 22 de diciembre 2017, se informa a la Dirección Ejecutiva sobre el resultado del estudio de Auditoria informe N°624-30-SAFJP-2017, en el que se solicita: "4.10. Realizar los ajustes correspondientes al registro contable de los aportes patronal y estatal, una vez que Gestión Humana remita los reportes que sustentan las cuentas por cobrar al Poder Judicial, de aquellos periodos en que se utilizó un dato incorrecto, considerando que ya se efectuó un pago producto del cambio en dichos aportes (acuerdo del artículo XXV de sesión de Corte Plena No. 5-17 celebrada el 6 de marzo de 2017) y que a la fecha se utilizan porcentajes incorrectos", producto de dicho estudio se determina una cuenta por pagar al Poder Judicial de ¢219,712,457.14, la cual se revela como nota al estado financiero hasta que la Dirección Ejecutiva gire instrucciones superiores. Cabe destacar que mediante oficios 129-SC-2018 con fecha de 23 de marzo de 2018 y 188-SC-2018 con fecha de 10 de mayo 2018, se reitera la información.

Sheet Nota 23
B2: Nota 23:
B4: CUENTAS DE ORDEN DEUDORAS Y ACREDORAS
B6: =+'Nota 22'!B5:J5 -> al 31 de Mayo de 2018
B8: Concepto | D8: Monto
B9: Cuentas por cobrar por reconocimiento de tiempo servido en otras dependencias o instituciones públicas, de aquellos servidores en condición de propietarios que renunciaron al Poder Judicial. | D9: 289645067.5
